bitfinex/quotes_ETHUSD_20250620
["timestamp","ask_amount","ask_price","bid_price","bid_amount"]
[1750458962026,0.76801166,2410.4,2410.3,5.60790197]
[1750458962526,0.76800831,2410.4,2410.3,5.60790197]
[1750458962755,0.76801611,2410.4,2410.3,5.60790197]
[1750458963082,11.741,2410.9,2410.8,4.20730066]
[1750458963227,11.741,2410.9,2410.8,4.14800066]
[1750458963228,19.54768125,2410.9,2410.8,4.14800066]
[1750458963428,29.54768125,2410.9,2410.8,4.14800066]
[1750458964426,29.16357164,2410.9,2410.8,4.14800066]
[1750458964622,36.82361154,2410.9,2410.8,4.14800066]
[1750458964829,0.0614,2410.7,2410.6,4.14834481]
[1750458965026,14.85202282,2410.7,2410.6,4.14834481]
[1750458965473,14.4066399,2410.7,2410.6,4.14834481]
[1750458965975,14.4680399,2410.7,2410.6,4.14834481]
[1750458966868,14.4066399,2410.7,2410.6,4.14834481]
[1750458970893,14.4680399,2410.7,2410.6,4.14834481]
[1750458971369,14.4066399,2410.7,2410.6,4.14834481]
[1750458971589,14.79061013,2410.7,2410.6,4.14834481]
[1750458971981,24.79061013,2410.7,2410.6,4.14834481]
[1750458973884,25.02099187,2410.7,2410.6,4.14834481]
[1750458974367,25.02160345,2410.7,2410.6,4.14834481]
[1750458974679,25.40595571,2410.7,2410.6,4.14834481]
[1750458974862,25.40595811,2410.7,2410.6,4.14834481]
[1750458975689,25.40603714,2410.7,2410.6,4.14834481]
[1750458975990,25.40602368,2410.7,2410.6,4.14834481]
[1750458976171,10.0,2410.6,2410.5,4.1485169]
[1750458976382,11.06077419,2410.6,2410.5,4.1485169]
[1750458976894,11.06077678,2410.6,2410.5,4.1485169]
[1750458977203,11.54937195,2410.6,2410.4,4.1485681]
[1750458977491,29.13963356,2410.5,2410.4,4.1485681]
[1750458977657,28.37088147,2410.5,2410.4,4.1485681]
[1750458977860,29.13958243,2410.5,2410.4,4.1485681]
[1750458978052,29.13958613,2410.5,2410.4,4.1485681]
[1750458978986,28.52463378,2410.5,2410.4,4.1485681]
[1750458979162,28.75526272,2410.5,2410.4,4.1485681]
[1750458979493,28.52493067,2410.5,2410.4,4.1485681]
[1750458979788,28.75597107,2410.5,2410.4,4.1485681]
[1750458979979,29.1408053,2410.5,2410.4,4.1485681]
[1750458980175,28.75600956,2410.5,2410.4,4.1485681]
[1750458980491,29.14089725,2410.5,2410.4,4.1485681]
[1750458980659,28.525152,2410.5,2410.4,4.1485681]
[1750458980854,29.1409503,2410.5,2410.4,4.1485681]
[1750458981199,29.14095487,2410.5,2410.4,4.1485681]
[1750458981369,29.14114478,2410.5,2410.4,4.1485681]
[1750458981689,28.9101756,2410.5,2410.4,4.1485681]
[1750458981995,29.14115217,2410.5,2410.4,4.1485681]
[1750458982194,29.14116353,2410.5,2410.4,4.1485681]
[1750458982570,29.14115678,2410.5,2410.4,4.1485681]
[1750458982766,29.14116407,2410.5,2410.4,4.1485681]
[1750458982996,29.14116396,2410.5,2410.4,4.1485681]
[1750458983218,25.40465367,2410.5,2410.4,4.1485681]
[1750458983497,25.40488358,2410.5,2410.4,4.1485681]
[1750458983708,25.40488113,2410.5,2410.4,4.1485681]
[1750458984088,25.40508554,2410.5,2410.4,4.1485681]
[1750458984271,25.40507786,2410.5,2410.4,4.1485681]
[1750458984571,27.24047783,2410.5,2410.4,4.1485681]
[1750458984772,26.79393388,2410.5,2410.4,4.1485681]
[1750458984962,26.79395638,2410.5,2410.4,4.1485681]
[1750458985165,27.17916742,2410.5,2410.4,4.1485681]
[1750458985361,27.17925537,2410.5,2410.4,4.1485681]
[1750458985698,27.17938449,2410.5,2410.4,4.1485681]
[1750458985894,27.17934861,2410.5,2410.4,4.1485681]
[1750458986061,26.1776399,2410.5,2410.4,4.1485681]
[1750458986422,27.17922938,2410.5,2410.4,4.1485681]
[1750458986572,26.94805798,2410.5,2410.4,4.1485681]
[1750458986779,27.17918296,2410.5,2410.4,4.1485681]
[1750458987016,27.17919956,2410.5,2410.4,4.1485681]
[1750458987361,27.17932711,2410.5,2410.4,4.1485681]
[1750458987673,27.17966482,2410.5,2410.4,4.1485681]
[1750458987985,30.04085937,2410.5,2410.4,4.1485681]
[1750458988181,29.8096315,2410.5,2410.4,4.1485681]
[1750458988381,30.04087983,2410.5,2410.4,4.1485681]
[1750458988586,30.04088432,2410.5,2410.4,4.1485681]
[1750458988763,30.04087177,2410.5,2410.4,4.1485681]
[1750458988964,29.36281558,2410.5,2410.4,4.1485681]
[1750458989303,29.97945079,2410.5,2410.4,4.1485681]
[1750458989797,29.97942971,2410.5,2410.4,4.1485681]
[1750458990004,29.97942855,2410.5,2410.4,4.1485681]
[1750458990314,29.97943634,2410.5,2410.4,4.1485681]
[1750458990464,29.97945341,2410.5,2410.4,4.1485681]
[1750458990669,29.97945397,2410.5,2410.4,4.1485681]
[1750458990865,27.17968484,2410.5,2410.4,4.1485681]
[1750458991097,27.17966312,2410.5,2410.4,4.1485681]
[1750458991311,19.19562137,2410.5,2410.4,4.1485681]
[1750458991634,19.58095786,2410.5,2410.4,4.1485681]
[1750458992121,19.58094936,2410.5,2410.4,4.1485681]
[1750458992469,18.579,2410.5,2410.4,4.1485681]
[1750458993009,19.58093736,2410.5,2410.4,4.1485681]
[1750458993511,19.5809735,2410.5,2410.4,4.1485681]
[1750458993794,18.96435896,2410.5,2410.4,4.1485681]
[1750458993998,19.34971792,2410.5,2410.4,4.1485681]
[1750458994171,19.58093336,2410.5,2410.4,4.1485681]
[1750458994369,19.58096716,2410.5,2410.4,4.1485681]
[1750458994678,19.1956082,2410.5,2410.4,4.1485681]
[1750458994878,19.58110523,2410.5,2410.4,4.1485681]
[1750458995197,19.5813215,2410.5,2410.4,4.1485681]
[1750458995511,19.58152539,2410.5,2410.4,4.1485681]
[1750458996217,19.58153766,2410.5,2410.4,4.1485681]
[1750458996377,19.58154801,2410.5,2410.4,4.1485681]
[1750458996582,19.58164597,2410.5,2410.4,4.1485681]
[1750458997371,19.58174748,2410.5,2410.4,4.1485681]
[1750458997572,19.57879695,2410.5,2410.4,4.1485681]
[1750458997906,19.19321026,2410.5,2410.4,4.1485681]
[1750458998088,19.57896429,2410.5,2410.4,4.1485681]
[1750458998293,19.19320745,2410.5,2410.4,4.1485681]
[1750458998503,19.57900533,2410.5,2410.4,4.2100681]
[1750458998816,19.57900353,2410.5,2410.4,4.2100681]
[1750458999106,11.00299624,2410.5,2410.4,4.2100681]
[1750458999312,17.80399624,2410.5,2410.4,5.83175214]
[1750458999620,17.80407125,2410.5,2410.4,5.83175214]
[1750458999921,17.80419694,2410.5,2410.4,5.83175214]
[1750459000291,17.8043325,2410.5,2410.4,4.9958681]
[1750459000501,16.801,2410.5,2410.4,4.9958681]
[1750459000814,17.80423602,2410.5,2410.4,4.9958681]
[1750459000976,17.80422034,2410.5,2410.4,4.9958681]
[1750459001177,17.80424199,2410.5,2410.4,4.9958681]
[1750459001381,16.801,2410.5,2410.4,4.9343681]
[1750459001578,28.02032999,2410.5,2410.4,4.1485681]
[1750459001809,0.55,2410.3,2409.1,0.7608]
[1750459002117,0.55,2410.3,2410.0,4.149283]
[1750459002118,10.0,2410.1,2410.0,4.149283]
[1750459002321,12.39136578,2410.1,2410.0,4.149283]
[1750459002630,12.77720981,2410.1,2410.0,4.149283]
[1750459002818,12.77717842,2410.1,2410.0,4.149283]
[1750459003148,20.37578375,2410.1,2410.0,4.210783]
[1750459003522,12.77716575,2410.1,2410.0,4.210783]
[1750459003945,12.77717517,2410.1,2410.0,4.210783]
[1750459004446,12.77644765,2410.1,2410.0,4.149283]
[1750459004746,20.37505758,2410.1,2410.0,4.14937759]
[1750459005442,20.37525271,2410.1,2410.0,4.14937759]
[1750459005613,20.37528842,2410.1,2410.0,4.14937759]
[1750459006253,20.37506921,2410.1,2410.0,4.14937759]
[1750459006413,20.37484381,2410.1,2410.0,4.14937759]
[1750459006612,20.37484443,2410.1,2410.0,4.14937759]
[1750459006833,20.37484424,2410.1,2410.0,4.14937759]
[1750459007065,20.3748477,2410.1,2410.0,4.14937759]
[1750459007369,20.37485316,2410.1,2410.0,4.14937759]
[1750459007669,20.37485119,2410.1,2410.0,4.14937759]
[1750459007976,20.37485108,2410.1,2410.0,4.14937759]
[1750459008176,20.14357237,2410.1,2410.0,4.14937759]
[1750459008359,20.37484722,2410.1,2410.0,4.14937759]
[1750459008671,20.37484595,2410.1,2410.0,4.14937759]
[1750459009365,20.37472947,2410.1,2410.0,4.14937759]
[1750459009566,20.37472961,2410.1,2410.0,4.14937759]
[1750459009755,19.60387453,2410.1,2410.0,4.14937759]
[1750459009960,20.37445368,2410.1,2410.0,4.14937759]
[1750459010159,19.3726399,2410.1,2410.0,4.14937759]
[1750459010365,20.37446306,2410.1,2410.0,4.14937759]
[1750459010656,20.37446461,2410.1,2410.0,4.21087759]
[1750459010846,20.37447469,2410.1,2410.0,4.21087759]
[1750459011048,12.77583365,2410.1,2410.0,4.21087759]
[1750459011356,7.57064118,2410.1,2410.0,5.90028655]
[1750459011565,7.80184271,2410.1,2410.0,5.90028655]
[1750459011871,7.80183771,2410.1,2410.0,5.90028655]
[1750459012273,17.80183771,2410.1,2410.0,5.90028655]
[1750459012454,17.1853248,2410.1,2410.0,5.90028655]
[1750459012651,17.57079902,2410.1,2410.0,5.90028655]
[1750459012956,10.77095548,2410.1,2410.0,5.90028655]
[1750459013275,17.18547774,2410.1,2410.0,5.90028655]
[1750459013580,10.38547774,2410.1,2410.0,5.90028655]
[1750459013778,10.38545367,2410.1,2410.0,5.90028655]
[1750459014084,10.38545609,2410.1,2410.0,5.90028655]
[1750459014313,10.0,2410.1,2410.0,5.90028655]
[1750459014478,10.38545386,2410.1,2410.0,5.90028655]
[1750459015092,6.799,2410.2,2410.1,4.21070542]
[1750459015296,7.1844772,2410.2,2410.1,5.63059582]
[1750459015502,7.56995063,2410.2,2410.1,5.63059582]
[1750459015666,7.56996218,2410.2,2410.1,5.63059582]
[1750459015866,7.18448109,2410.2,2410.1,5.63059582]
[1750459016162,6.799,2410.2,2410.1,5.63059582]
[1750459016366,7.18457008,2410.2,2410.1,5.63059582]
[1750459016679,7.57014211,2410.2,2410.1,5.63059582]
[1750459016887,7.57016925,2410.2,2410.1,5.63059582]
[1750459017409,7.57011154,2410.2,2410.1,5.63059582]
[1750459017615,7.57011493,2410.2,2410.1,5.63059582]
[1750459017813,7.57011655,2410.2,2410.1,5.63059582]
[1750459018114,6.799,2410.2,2410.1,5.63059582]
[1750459018315,7.18455968,2410.2,2410.1,5.63059582]
[1750459019130,6.799,2410.2,2410.1,5.63059582]
[1750459019341,7.18456432,2410.2,2410.1,5.63059582]
[1750459019499,7.18456538,2410.2,2410.1,5.63059582]
[1750459021496,7.18447916,2410.2,2410.1,5.63059582]
[1750459021925,6.799,2410.2,2410.1,5.63059582]
[1750459022084,7.18448567,2410.2,2410.1,5.63059582]
[1750459022639,7.18448567,2410.2,2410.1,4.21070542]
[1750459022789,7.57000408,2410.2,2410.1,4.21070542]
[1750459023199,17.56997267,2410.2,2410.1,4.14920542]
[1750459023586,17.56996747,2410.2,2410.1,4.14920542]
[1750459023787,17.8012584,2410.2,2410.1,4.14920542]
[1750459023987,17.80127571,2410.2,2410.1,4.14920542]
[1750459024183,17.63216276,2410.2,2410.1,4.14920542]
[1750459024389,17.86340747,2410.2,2410.1,4.14920542]
[1750459024588,17.86343592,2410.2,2410.1,4.14920542]
[1750459024886,17.86348703,2410.2,2410.1,4.14920542]
[1750459025087,17.86348703,2410.2,2410.0,4.14928648]
[1750459025088,10.0,2410.1,2410.0,4.14928648]
[1750459025287,19.82497577,2410.1,2410.0,4.14928648]
[1750459025526,10.8004,2409.9,2409.3,0.806]
[1750459025736,7.5986399,2409.4,2409.3,4.15058315]
[1750459026041,14.78002562,2409.4,2409.3,4.15058315]
[1750459026206,14.84222562,2409.4,2409.3,4.15058315]
[1750459026397,15.22762296,2409.4,2409.3,4.15058315]
[1750459026593,14.84229063,2409.4,2409.3,4.15058315]
[1750459026793,15.16553763,2409.4,2409.3,4.15058315]
[1750459027311,15.16556737,2409.4,2409.3,4.15058315]
[1750459027496,7.56692768,2409.4,2409.3,4.15058315]
[1750459027700,6.796,2409.4,2409.3,4.15058315]
[1750459027913,7.56693294,2409.4,2409.3,4.15058315]
[1750459028509,7.18146731,2409.4,2409.3,4.15058315]
[1750459028799,7.56597771,2409.4,2409.3,4.15058315]
[1750459029216,7.5659812,2409.4,2409.3,4.15058315]
[1750459029924,7.56597634,2409.4,2409.3,4.15058315]
[1750459030121,7.18098988,2409.4,2409.3,4.15058315]
[1750459030300,7.56597992,2409.4,2409.3,4.15058315]
[1750459030801,7.56597284,2409.4,2409.3,4.15058315]
[1750459031121,7.56597173,2409.4,2409.3,4.15058315]
[1750459031697,7.56583575,2409.4,2409.3,4.15058315]
[1750459031898,25.16447565,2409.4,2409.3,4.15058315]
[1750459032135,25.39537019,2409.4,2409.2,4.15069408]
[1750459032341,2.8339101,2409.3,2409.2,4.15069408]
[1750459032695,10.0622,2409.2,2408.6,5.03133256]
[1750459032895,7.5986399,2408.9,2408.8,4.1514447]
[1750459033147,15.16427579,2408.9,2408.8,4.1514447]
[1750459033347,15.16419398,2408.9,2408.8,4.1514447]
[1750459033555,25.16416285,2408.9,2408.8,4.1514447]
[1750459033757,25.45720478,2408.9,2408.8,4.1514447]
[1750459034127,25.22636285,2408.9,2408.8,4.1514447]
[1750459034531,10.0,2408.8,2408.7,4.15152822]
[1750459034726,12.53865128,2408.8,2408.7,4.15152822]
[1750459034930,0.0622,2408.6,2408.5,4.15189033]
[1750459035160,24.84061425,2408.6,2408.5,4.15189033]
[1750459035363,10.0,2408.5,2408.4,4.15206197]
[1750459035662,18.04460888,2408.5,2407.9,0.0568]
[1750459035846,17.17976898,2408.4,2408.3,4.15216081]
[1750459036046,16.796,2408.4,2408.3,4.15216081]
[1750459036362,17.1795881,2408.4,2408.3,4.15216081]
[1750459036535,16.8582,2408.4,2408.3,4.15216081]
[1750459036740,17.24176957,2408.4,2408.3,4.15216081]
[1750459037143,17.17956957,2408.4,2408.3,4.15216081]
[1750459037846,17.17956957,2408.4,2407.8,0.8229]
[1750459037847,0.0622,2408.2,2408.1,4.15262663]
[1750459038165,0.0622,2408.0,2407.9,4.15295297]
[1750459038471,10.0,2407.9,2407.6,4.15343676]
[1750459038645,17.5986399,2407.7,2407.6,4.15337049]
[1750459038835,0.6122,2407.3,2405.7,0.8229]
[1750459039031,0.6122,2407.3,2406.2,4.15593051]
[1750459039032,7.5986399,2406.4,2406.2,4.15593051]
[1750459039227,8.645,2406.3,2406.2,4.15593051]
[1750459039955,26.2436399,2406.3,2406.2,4.15593051]
[1750459040129,26.2436399,2406.3,2406.0,4.1562163]
[1750459040335,26.3058399,2406.3,2406.0,4.1562163]
[1750459040667,0.0622,2406.2,2406.1,4.15599098]
[1750459040873,0.55,2406.1,2405.4,0.8333]
[1750459041082,7.5986399,2405.9,2405.8,4.15662149]
[1750459041296,16.849,2406.0,2405.9,4.15644873]
[1750459041785,16.9112,2406.0,2405.9,4.15644873]
[1750459042584,0.0622,2405.8,2405.5,4.15698336]
[1750459042782,17.5986399,2405.6,2405.5,4.15698336]
[1750459043087,10.6122,2405.6,2405.5,4.15698336]
[1750459044063,12.66954065,2405.6,2405.5,4.15698336]
[1750459044583,12.60734065,2405.6,2405.5,4.15698336]
[1750459044788,12.60734065,2405.6,2405.5,5.04521112]
[1750459044789,18.91134065,2405.6,2405.5,5.04521112]
[1750459045259,18.91134065,2405.6,2405.5,4.21378336]
[1750459045452,18.91134065,2405.6,2405.5,4.15698336]
[1750459047365,8.91134065,2405.6,2405.5,4.15698336]
[1750459047881,8.91134065,2405.6,2405.5,4.21378336]
[1750459048084,2.05734065,2405.6,2405.5,5.02088336]
[1750459048266,2.05734065,2405.6,2405.5,5.98026769]
[1750459049185,2.05734065,2405.6,2405.5,5.93870112]
[1750459051558,2.05734065,2405.6,2405.5,5.98026773]
[1750459054495,2.05734065,2405.6,2405.5,5.93870112]
[1750459055074,2.05734065,2405.6,2405.5,5.98026586]
[1750459055478,2.05734065,2405.6,2405.5,5.93870112]
[1750459056501,20.70334065,2405.6,2405.5,4.15713988]
[1750459056813,12.81259621,2405.6,2405.5,4.15713988]
[1750459056974,21.52889621,2405.6,2405.5,4.15713988]
[1750459057174,21.52889509,2405.6,2405.5,4.15713988]
[1750459057388,21.52890265,2405.6,2405.5,4.15713988]
[1750459057565,21.52890265,2405.6,2405.1,4.1576674]
[1750459057566,10.0583,2405.5,2405.4,4.15730055]
[1750459057777,11.363562,2405.5,2405.2,4.15753519]
[1750459057980,0.813562,2405.4,2405.3,4.15748555]
[1750459058296,2.30823232,2405.4,2405.3,4.15748555]
[1750459058592,1.93060075,2405.4,2405.3,4.15748555]
[1750459058796,2.30876484,2405.4,2405.3,4.15748555]
[1750459059106,0.0583,2405.1,2404.7,4.15838796]
[1750459059407,10.0583,2404.9,2404.8,4.15827089]
[1750459059594,10.81452228,2404.9,2404.8,4.15827089]
[1750459059799,20.88224564,2404.9,2404.8,4.15827089]
[1750459060194,23.75174798,2404.9,2404.8,4.15834996]
[1750459060396,0.8577,2404.8,2404.7,4.15844565]
[1750459060604,1.55505739,2404.8,2404.6,4.15860055]
[1750459060785,0.0583,2404.6,2404.5,4.15886878]
[1750459060983,7.68246108,2404.6,2404.5,4.15886878]
[1750459061284,11.43589422,2404.6,2403.9,0.7607]
[1750459061597,0.0583,2404.4,2404.3,4.15910854]
[1750459061765,2.61597435,2404.4,2404.3,4.15910854]
[1750459062094,4.0284512,2404.4,2404.3,4.15910854]
[1750459062466,14.0284512,2404.4,2404.3,4.15910854]
[1750459062679,14.02844079,2404.4,2404.3,4.15910854]
[1750459063062,14.02737756,2404.4,2404.3,4.15910854]
[1750459063694,20.84008546,2404.4,2404.3,4.22020854]
[1750459063902,10.46179187,2404.4,2404.3,4.22020854]
[1750459064101,2.1705683,2404.4,2404.3,4.22020854]
[1750459064284,10.83857979,2404.4,2404.3,4.15910854]
[1750459064813,10.84157979,2404.4,2404.3,4.22020854]
[1750459065001,10.46225223,2404.4,2404.3,4.15910854]
[1750459065274,10.84202761,2404.4,2404.3,4.15910854]
[1750459065502,10.08247685,2404.4,2404.3,4.15910854]
[1750459065706,10.84182067,2404.4,2404.3,4.15910854]
[1750459066314,10.84181468,2404.4,2404.3,4.15910854]
[1750459066611,11.06956157,2404.4,2404.3,4.15910854]
[1750459066779,10.68992482,2404.4,2404.3,4.15910854]
[1750459067181,11.06956159,2404.4,2404.3,4.15910854]
[1750459067395,11.06955363,2404.4,2404.3,4.15910854]
[1750459067617,2.39954636,2404.4,2404.3,4.15910854]
[1750459067912,11.0675974,2404.4,2404.3,4.15910854]
[1750459068216,2.4007455,2404.4,2404.3,4.15910854]
[1750459068420,11.06954993,2404.4,2404.3,4.15910854]
[1750459068591,11.07131533,2404.4,2404.3,4.15910854]
[1750459068924,10.68983401,2404.4,2404.3,4.15910854]
[1750459069106,12.23672362,2404.4,2404.3,4.15910854]
[1750459069316,12.23670998,2404.4,2404.3,4.15910854]
[1750459069526,12.23670998,2404.4,2404.3,4.15921474]
[1750459069829,12.23670833,2404.4,2404.3,4.15921474]
[1750459070043,12.23670149,2404.4,2404.3,4.15921474]
[1750459070516,11.85524753,2404.4,2404.3,4.15921474]
[1750459070736,12.23669961,2404.4,2404.3,4.15921474]
[1750459071030,12.23667326,2404.4,2404.3,4.15921474]
[1750459071226,12.2366672,2404.4,2404.3,4.15921474]
[1750459071425,12.01050838,2404.4,2404.3,4.15921474]
[1750459071628,12.94289335,2404.4,2404.3,4.15921474]
[1750459072228,12.94268318,2404.4,2404.3,4.15921474]
[1750459072422,2.40395165,2404.4,2404.3,4.15921474]
[1750459072609,19.2669625,2404.4,2404.3,4.26190512]
[1750459072812,2.4039625,2404.4,2404.3,4.26190284]
[1750459073129,9.26704129,2404.4,2404.3,4.26190284]
[1750459073325,2.40404129,2404.4,2404.3,5.1847577]
[1750459073633,2.40404392,2404.4,2404.3,5.1847577]
[1750459073814,2.40404226,2404.4,2404.3,5.1847577]
[1750459074011,2.40404115,2404.4,2404.3,5.1847577]
[1750459074459,2.40406216,2404.4,2404.3,5.1847577]
[1750459074589,2.40405722,2404.4,2404.3,5.1847577]
[1750459074926,2.40453261,2404.4,2404.3,5.1847577]
[1750459075130,2.40453402,2404.4,2404.3,5.1847577]
[1750459075825,2.40453886,2404.4,2404.3,5.1847577]
[1750459076031,2.40454033,2404.4,2404.3,5.1431696]
[1750459076332,2.0229799,2404.4,2404.3,5.1431696]
[1750459076497,1.79403951,2404.4,2404.3,5.1431696]
[1750459076696,2.02297439,2404.4,2404.3,5.1431696]
[1750459077118,1.64141173,2404.4,2404.3,5.1431696]
[1750459077499,1.64136352,2404.4,2404.3,5.1431696]
[1750459078202,1.64148583,2404.4,2404.3,5.1431696]
[1750459078408,1.6414807,2404.4,2404.3,5.1431696]
[1750459078925,1.64148531,2404.4,2404.3,5.1431696]
[1750459079118,1.64148531,2404.4,2404.3,4.15921474]
[1750459079354,1.64147782,2404.4,2404.3,4.15921474]
[1750459079659,2.02313966,2404.4,2404.3,4.15921474]
[1750459079944,1.79413869,2404.4,2404.3,4.15921474]
[1750459080146,2.02325948,2404.4,2404.3,4.15921474]
[1750459080357,1.41247685,2404.4,2404.3,4.15921474]
[1750459080558,2.02346606,2404.4,2404.3,4.15921474]
[1750459081058,8.87945625,2404.4,2404.3,4.15921474]
[1750459081253,9.26130797,2404.4,2404.3,4.15921474]
[1750459081465,8.87945677,2404.4,2404.3,4.15921474]
[1750459081611,9.26129469,2404.4,2404.3,4.15921474]
[1750459081810,9.03215319,2404.4,2404.3,4.15921474]
[1750459082010,9.2614221,2404.4,2404.3,4.15921474]
[1750459082362,11.24714841,2404.4,2404.3,4.15921474]
[1750459082559,11.247257,2404.4,2404.3,4.15921474]
[1750459083110,11.24868405,2404.4,2404.3,4.15921474]
[1750459083331,2.40703572,2404.4,2404.3,4.15921474]
[1750459083686,2.40702267,2404.4,2404.3,4.21631474]
[1750459083892,2.40702267,2404.4,2404.3,4.25790368]
[1750459084051,1.6420271,2404.4,2404.3,5.01180368]
[1750459084372,1.82164323,2404.4,2404.3,0.04158894]
[1750459084671,4.7111325,2403.2,2402.6,4.35714437]
[1750459084854,40.96209488,2402.9,2402.7,4.16194219]
[1750459085055,17.83858939,2402.8,2402.6,0.19507528]
[1750459085234,17.1855,2402.8,2402.7,4.16198443]
[1750459085430,0.99373862,2402.8,2402.7,4.16198443]
[1750459085765,0.99373787,2402.8,2402.7,4.16198443]
[1750459085972,18.11674496,2402.8,2402.7,4.16198443]
[1750459086167,18.11964011,2402.8,2402.7,4.16198443]
[1750459086466,18.10647992,2402.8,2402.7,4.16198443]
[1750459086770,18.10533883,2402.8,2402.7,4.16198443]
[1750459086972,10.98233883,2402.8,2402.7,4.16198443]
[1750459087171,10.98222331,2402.8,2402.7,4.16198443]
[1750459087480,18.11239525,2402.8,2402.7,4.16198443]
[1750459087658,18.11239316,2402.8,2402.7,4.16198443]
[1750459088033,20.02520143,2402.8,2402.7,4.16198443]
[1750459088234,20.02520143,2402.8,2400.9,0.20562423]
[1750459088235,10.6095,2402.6,2402.1,0.2208927]
[1750459088461,0.0595,2402.2,2402.1,0.2208927]
[1750459088681,8.21020908,2402.2,2402.1,4.38391672]
[1750459088988,0.99317864,2402.2,2402.1,4.44101672]
[1750459089198,0.48018959,2402.9,2402.8,4.16181122]
[1750459089523,8.63876765,2402.9,2402.8,4.16181122]
[1750459089627,18.25758378,2402.9,2402.8,4.16181122]
[1750459089832,18.21817113,2402.9,2402.8,4.16181122]
[1750459090060,10.99117113,2402.9,2402.8,4.16181122]
[1750459090363,10.60997535,2402.9,2402.8,4.16181122]
[1750459090563,0.38118387,2402.9,2402.8,4.16181122]
[1750459090764,0.38118387,2402.9,2402.8,4.21891122]
[1750459091144,18.57610123,2403.1,2403.0,4.16146483]
[1750459091345,1.73130722,2403.1,2403.0,4.16146483]
[1750459091547,1.73128986,2403.1,2403.0,4.16146483]
[1750459091743,11.83233864,2403.1,2402.3,0.7539]
[1750459091959,10.96209488,2402.9,2402.8,4.16166435]
[1750459092173,28.56424319,2402.9,2402.8,4.16166435]
[1750459092968,28.62374319,2402.9,2402.8,4.16166435]
[1750459093173,28.24259488,2402.9,2402.8,4.16166435]
[1750459093376,28.56368372,2402.9,2402.8,4.16166435]
[1750459093762,17.59858884,2402.9,2402.8,4.16166435]
[1750459094282,10.0,2402.9,2402.8,4.16166435]
[1750459094490,17.59465058,2402.9,2402.8,4.16166435]
[1750459095371,17.214,2402.9,2402.8,4.16166435]
[1750459095798,10.0,2402.9,2402.8,4.16166435]
[1750459095951,10.0,2402.9,2402.1,0.2208927]
[1750459095952,0.8531,2402.5,2402.1,0.2208927]
[1750459096148,0.6095,2402.2,2402.1,0.2208927]
[1750459096360,8.34290442,2402.2,2402.1,4.38391672]
[1750459096568,7.9215,2402.2,2402.1,4.38391672]
[1750459096779,8.34291859,2402.2,2402.1,4.38391672]
[1750459097131,7.68982949,2402.2,2402.1,4.38391672]
[1750459097298,0.7936,2401.6,2400.1,4.16649306]
[1750459097617,10.55,2400.9,2400.7,4.16536218]
[1750459097814,18.7706891,2400.8,2400.7,4.09368418]
[1750459098020,18.7291,2400.8,2400.7,4.16545174]
[1750459098233,8.1791,2400.8,2400.2,4.16631947]
[1750459098410,7.327,2400.7,2400.6,4.16562526]
[1750459098744,11.02159488,2400.8,2400.1,4.16649306]
[1750459099023,17.329,2400.7,2400.6,4.16562526]
[1750459099184,10.41597898,2400.8,2400.7,4.16545174]
[1750459099380,7.88,2400.8,2400.7,4.16545174]
[1750459099826,12.1265,2401.0,2400.9,4.16510475]
[1750459099827,10.0595,2401.0,2400.9,4.16510475]
[1750459100333,0.6095,2400.9,2400.8,4.16527824]
[1750459100492,0.6510891,2400.9,2400.8,4.16527824]
[1750459100891,0.6510891,2400.9,2400.1,4.16649306]
[1750459100892,0.55,2400.9,2400.4,4.16583923]
[1750459101115,10.55,2400.7,2400.6,4.16551911]
[1750459101313,10.0,2400.7,2400.6,4.16551911]
[1750459101487,10.55,2400.7,2400.6,4.16551911]
[1750459101687,10.0,2400.7,2400.0,2.0571]
[1750459101892,2.94460796,2401.0,2400.5,4.16579879]
[1750459101893,17.334,2400.6,2400.5,4.16579879]
[1750459102933,11.3552,2400.5,2400.1,0.21]
[1750459103120,0.41840636,2400.4,2400.3,4.16614589]
[1750459103434,0.8052,2401.4,2400.7,0.8184]
[1750459103597,10.0,2401.4,2401.3,4.16441094]
[1750459103797,7.343,2401.4,2401.3,4.16441094]
[1750459104098,7.343,2401.4,2401.2,4.1645653]
[1750459104099,2.068,2401.8,2401.7,4.16371736]
[1750459104328,9.418,2401.8,2401.7,4.16371736]
[1750459105030,0.8052,2402.1,2402.0,4.16319733]
[1750459105234,0.8052,2402.1,2401.8,4.1635168]
[1750459105235,9.999,2402.4,2402.1,4.16302402]
[1750459105424,9.414,2402.3,2402.2,4.16285072]
[1750459105628,9.999,2402.4,2402.3,4.16267743]
[1750459105808,19.414,2402.4,2402.3,4.16267743]
[1750459106014,17.345,2402.4,2402.3,4.16267743]
[1750459106399,1.2285391,2402.8,2402.7,4.16198443]
[1750459106400,0.8205,2402.8,2402.7,4.16198443]
[1750459106599,41.59302307,2402.8,2402.7,4.16198443]
[1750459107196,51.59302307,2402.8,2402.7,4.16198443]
[1750459107599,9.999,2403.2,2402.8,4.16181122]
[1750459107600,30.0,2402.9,2402.8,4.16181122]
[1750459107827,39.41,2402.9,2402.8,4.16181122]
[1750459108030,1.35010123,2403.1,2403.0,4.16146483]
[1750459108247,18.78919033,2403.1,2403.0,4.16146483]
[1750459108398,0.0595,2403.0,2402.9,4.16155209]
[1750459108600,3.18589427,2403.0,2402.9,4.16155209]
[1750459108901,12.80729748,2403.0,2402.9,4.16155209]
[1750459109300,13.18591673,2403.0,2402.9,4.16155209]
[1750459109735,12.80729748,2403.0,2402.9,4.16155209]
[1750459109942,13.1859142,2403.0,2402.9,4.16155209]
[1750459110143,12.80729748,2403.0,2402.9,4.16155209]
[1750459110337,12.74779748,2403.0,2402.9,4.16155209]
[1750459110557,10.0,2403.0,2402.9,4.16155209]
[1750459110711,19.392,2403.0,2402.9,4.16155209]
[1750459111644,19.388,2403.0,2402.9,4.16155209]
[1750459112025,10.0,2403.0,2402.9,4.16155209]
[1750459112238,17.318,2403.0,2402.9,4.16155209]
[1750459112631,17.69857682,2403.0,2402.9,4.16155209]
[1750459113225,17.69858381,2403.0,2402.9,4.16155209]
[1750459114047,17.69857943,2403.0,2402.9,4.16155209]
[1750459114371,17.69157985,2403.0,2402.9,4.16155209]
[1750459114865,10.38057985,2403.0,2402.9,4.16155209]
[1750459115070,17.68757985,2403.0,2402.9,4.16155209]
[1750459115239,17.68758849,2403.0,2402.9,4.16155209]
[1750459115740,17.68765657,2403.0,2402.9,4.16155209]
[1750459115944,17.68765657,2403.0,2402.7,4.16190923]
[1750459115945,0.058,2402.8,2402.7,4.16190923]
[1750459116145,17.78224047,2402.8,2402.7,4.16190923]
[1750459116470,0.058,2402.7,2402.6,4.16213056]
[1750459116644,0.38043589,2402.7,2402.5,4.16223405]
[1750459116845,19.4645891,2402.6,2402.5,4.16223405]
[1750459117140,19.423,2402.6,2402.5,4.16223405]
[1750459117471,19.74542645,2402.6,2402.4,4.16242187]